fUST/lending_fUST_20240812
["ID","MTS","AMOUNT","RATE_DAILY","PERIOD"]
[334686642,1723471628406,-250.0,0.00017301,2]
[334686643,1723471628432,-250.0,0.00017348,2]
[334686644,1723471628460,-526.93553019,0.00017389,2]
[334686645,1723471628483,-250.0,0.00017395,2]
[334686646,1723471628504,-158.04068248,0.00017403,2]
[334686647,1723471628531,-250.0,0.00017442,2]
[334686648,1723471628555,-250.0,0.00017489,2]
[334686649,1723471628580,-250.0,0.00017536,2]
[334686650,1723471628606,-250.0,0.00017583,2]
[334686651,1723471628631,-300.0,0.00017623,2]
[334686652,1723471628653,-300.0,0.00017623,2]
[334686653,1723471628675,-4065.02782903,0.00017624,2]
[334686654,1723471628703,-250.0,0.0001763,2]
[334686655,1723471628726,-250.0,0.00017677,2]
[334686656,1723471628749,-17208.80577587,0.00017722,2]
[334686657,1723471640376,-3981.81720431,0.00017722,2]
[334686666,1723471759164,-153.0,0.00016438,2]
[334686667,1723471759186,-70.28349556,0.00016438,2]
[334686668,1723471762391,2069.6,0.0001501,2]
[334686669,1723471769096,-82.71650444,0.00016438,2]
[334686670,1723471769134,-3709.37701982,0.00017722,2]
[334686671,1723471769157,-250.0,0.00017724,2]
[334686672,1723471769183,-250.0,0.00017772,2]
[334686673,1723471769205,-250.0,0.00017819,2]
[334686674,1723471769227,-250.0,0.00017866,2]
[334686675,1723471769250,-250.0,0.00017913,2]
[334686676,1723471769272,-250.0,0.0001796,2]
[334686677,1723471769292,-245.09758384,0.00018,2]
[334686678,1723471769315,-250.0,0.00018007,2]
[334686679,1723471769336,-250.0,0.00018054,2]
[334686680,1723471769358,-416.41210938,0.00018489,3]
[334686714,1723471832415,-300.0,0.00017803,2]
[334686715,1723471832424,-300.0,0.00017803,2]
[334686716,1723471832434,-11028.0,0.00017804,2]
[334686780,1723471838187,-2921.65,0.00017804,2]
[334686781,1723471838320,-10950.35,0.00017804,2]
[334686782,1723471838329,-2280.6099092,0.00018356,3]
[334686783,1723471838339,-2164.74871652,0.00018557,2]
[334686784,1723471838348,-1364.59246336,0.00018629,2]
[334686785,1723471838357,-500.0,0.00018633,2]
[334686786,1723471838367,-500.0,0.000187,2]
[334686787,1723471838376,-500.0,0.000187,2]
[334686788,1723471838385,-500.0,0.000187,2]
[334686789,1723471838395,-500.0,0.000187,2]
[334686790,1723471838404,-500.0,0.000187,2]
[334686791,1723471838413,-500.0,0.000187,2]
[334686792,1723471838423,-199.76436199,0.000187,2]
[334686793,1723471838432,-37299.50400965,0.00018701,2]
[334686794,1723471838444,-508.42605454,0.00018701,2]
[334686795,1723471838455,-726.88,0.00018701,2]
[334686796,1723471838528,-16899.78753062,0.00018701,2]
[334686797,1723471838538,-55434.59759481,0.00018701,2]
[334686798,1723471838549,-897.92379833,0.00018773,2]
[334686799,1723471838559,-601.3570708,0.00018786,2]
[334686800,1723471838569,-612.77340407,0.00018786,2]
[334686801,1723471838578,-222.83730098,0.00018825,2]
[334686802,1723471838592,-174.56235819,0.00018825,2]
[334686803,1723471838601,-569.05372197,0.00018825,2]
[334686804,1723471838610,-208.45850869,0.00018845,2]
[334686805,1723471838620,-154.76012181,0.00018845,2]
[334686806,1723471838630,-166.23720356,0.00018845,2]
[334686807,1723471838639,-309.11885378,0.00018845,2]
[334686808,1723471838649,-274.44831486,0.00018845,2]
[334686809,1723471838658,-519.88688544,0.00018845,2]
[334686810,1723471838668,-157.24672089,0.00018899,2]
[334686811,1723471838690,-472.28479668,0.00018899,2]
[334686812,1723471838699,-159.38116829,0.00018899,2]
[334686813,1723471838708,-817.03180288,0.00018899,3]
[334686814,1723471838718,-500.0,0.00018904,2]
[334686815,1723471838729,-154.76012181,0.0001891,2]
[334686816,1723471838741,-383.75592559,0.00018921,2]
[334686817,1723471838750,-155.01488509,0.00018945,2]
[334686818,1723471838760,-3090.72018399,0.00018945,2]
[334686819,1723471838769,-636.65531725,0.0001895,2]
[334686820,1723471838779,-42383.12825852,0.00018969,2]
[334686821,1723471838789,-9432.90932631,0.00018969,2]
[334686822,1723471838799,-62449.1060131,0.00018989,2]
[334686823,1723471838808,-321.4,0.00018989,3]
[334686824,1723471838817,-300.79569412,0.00018989,2]
[334686825,1723471838826,-539.32727083,0.00018999,2]
[334686826,1723471838835,-317.0,0.00019,2]
[334686827,1723471838845,-261.44728913,0.00019002,2]
[334686828,1723471838854,-277.46411292,0.00019102,2]
[334686829,1723471838863,-1644.88536636,0.00019139,7]
[334686830,1723471838874,-1110.15351103,0.00019147,2]
[334686831,1723471838884,-165.78487403,0.00019147,2]
[334686832,1723471838893,-154.76012181,0.00019147,2]
[334686833,1723471838903,-162.41795,0.00019178,2]
[334686834,1723471838913,-250.0,0.00019178,2]
[334686835,1723471838922,-250.24281476,0.00019256,2]
[334686836,1723471838932,-990.107634,0.00019256,2]
[334686837,1723471838941,-261.44728913,0.00019377,2]
[334686838,1723471838951,-300.0,0.00019429,2]
[334686839,1723471838960,-494.73852133,0.00019451,2]
[334686840,1723471838969,-210.07711325,0.00019451,2]
[334686841,1723471838978,-207.2872883,0.00019451,2]
[334686842,1723471838988,-157.9723884,0.00019477,2]
[334686843,1723471838998,-150.112233,0.000195,2]
[334686844,1723471839008,-170.861504,0.0001951,2]
[334686845,1723471839164,-174.298995,0.0001951,2]
[334686846,1723471839177,-62449.1060131,0.00019537,2]
[334686847,1723471839187,-500.0,0.00019564,2]
[334686848,1723471839213,-420.0,0.00019583,2]
[334686849,1723471839223,-151.16360752,0.00019638,2]
[334686850,1723471839232,-2000.0,0.0001968,2]
[334686851,1723471839242,-150.112233,0.000197,2]
[334686852,1723471839252,-261.44728913,0.00019751,2]
[334686853,1723471839261,-14491.44324251,0.0001988,2]
[334686854,1723471839271,-151.90208824,0.00019938,2]
[334686855,1723471839280,-5507.30341525,0.0001999,11]
[334686856,1723471839290,-62449.1060131,0.0001999,2]
[334686857,1723471839300,-1393.14395153,0.0002,2]
[334686858,1723471839309,-204.57126989,0.0002,2]
[334686859,1723471839319,-435.0,0.0002,2]
[334686860,1723471839328,-294.33166663,0.0002,2]
[334686861,1723471839337,-33351.6245134,0.0002,2]
[334686862,1723471839346,-154.74467129,0.0002,2]
[334686863,1723471839355,-155.13797827,0.0002,2]
[334686864,1723471839365,-336.53868747,0.0002,2]
[334686865,1723471839374,-500.0,0.0002,2]
[334686866,1723471839383,-154.74467129,0.0002,2]
[334686867,1723471839393,-150.112233,0.0002,2]
[334686868,1723471839402,-155.05360391,0.0002,2]
[334686870,1723471839411,-154.76012181,0.0002,2]
[334686871,1723471839421,-1824.36796,0.0002,2]
[334686872,1723471839431,-153.6145265,0.0002,2]
[334686873,1723471839440,-261.44728913,0.00020126,2]
[334686874,1723471839449,-589.3669008,0.00020137,2]
[334686875,1723471839459,-150.112233,0.000202,2]
[334686877,1723471839468,-150.0,0.00020272,2]
[334686879,1723471839478,-508.0,0.00020272,2]
[334686881,1723471839487,-342.39119771,0.0002028,2]
[334686882,1723471839497,-153.0,0.00020301,2]
[334686884,1723471839506,-150.112233,0.000204,3]
[334686886,1723471839516,-261.44728913,0.000205,2]
[334686888,1723471839526,-303.17349927,0.00020542,2]
[334686889,1723471839535,-1413.0,0.00020576,2]
[334686890,1723471839544,-62449.1060131,0.0002059,2]
[334686891,1723471839554,-150.112233,0.000206,5]
[334686892,1723471839564,-32843.99201717,0.000206,3]
[334686893,1723471839574,-62449.1060131,0.000207,2]
[334686894,1723471839584,-40389.24813264,0.0002071,2]
[334686895,1723471839597,-354.0962699,0.00020821,11]
[334686896,1723471839606,-500.0,0.00020821,2]
[334686897,1723471839616,-502.30415664,0.00020821,3]
[334686898,1723471839626,-500.0,0.00020821,3]
[334686899,1723471839636,-500.0,0.00020821,3]
[334686900,1723471839645,-503.60825939,0.00020821,3]
[334686901,1723471839654,-500.0,0.00020821,3]
[334686902,1723471839665,-500.0,0.00020821,3]
[334686903,1723471839677,-500.0,0.00020821,2]
[334686904,1723471839686,-501.90565031,0.00020821,3]
[334686905,1723471839707,-500.0,0.00020821,3]
[334686906,1723471839721,-500.0,0.00020821,3]
[334686907,1723471839731,-1179.16,0.00020821,3]
[334686908,1723471839740,-502.52552637,0.00020821,3]
[334686909,1723471839750,-500.0,0.00020821,3]
[334686910,1723471839760,-545.30960326,0.00020821,3]
[334686911,1723471839770,-500.0,0.00020821,3]
[334686912,1723471839780,-500.0,0.00020821,3]
[334686913,1723471839789,-500.0,0.00020821,3]
[334686914,1723471839799,-509.47072103,0.00020821,3]
[334686915,1723471839809,-503.68425534,0.00020821,3]
[334686916,1723471839818,-500.0,0.00020821,3]
[334686917,1723471839828,-500.0,0.00020821,3]
[334686918,1723471839837,-500.0,0.00020821,3]
[334686919,1723471839847,-500.0,0.00020821,3]
[334686921,1723471839856,-500.0,0.00020821,3]
[334686923,1723471839866,-559.40120012,0.00020821,3]
[334686925,1723471839875,-500.0,0.00020821,3]
[334686926,1723471839884,-462.62434304,0.00020821,3]
[334686927,1723471839894,-500.0,0.00020821,3]
[334686928,1723471839903,-500.0,0.00020821,3]
[334686930,1723471839912,-503.9623298,0.00020821,3]
[334686931,1723471839922,-500.0,0.00020821,3]
[334686932,1723471839932,-500.0,0.00020821,3]
[334686933,1723471839941,-500.0,0.00020821,3]
[334686934,1723471839951,-500.0,0.00020821,3]
[334686935,1723471839960,-500.0,0.00020821,3]
[334686936,1723471839970,-500.0,0.00020821,3]
[334686937,1723471839979,-500.0,0.00020821,3]
[334686938,1723471839989,-500.0,0.00020821,3]
[334686939,1723471839999,-500.0,0.00020821,3]
[334686940,1723471840009,-500.0,0.00020821,3]
[334686941,1723471840019,-500.0,0.00020821,3]
[334686943,1723471840030,-500.0,0.00020821,3]
[334686944,1723471840039,-500.0,0.00020821,3]
[334686945,1723471840048,-500.0,0.00020821,2]
[334686946,1723471840057,-629.27268015,0.00020821,3]
[334686947,1723471840066,-500.0,0.00020821,3]
[334686948,1723471840076,-500.0,0.00020821,3]
[334686949,1723471840085,-521.83628415,0.00020821,3]
[334686950,1723471840095,-500.0,0.00020821,3]
[334686951,1723471840104,-795.27,0.00020821,3]
[334686952,1723471840114,-500.0,0.00020821,3]
[334686953,1723471840124,-651.48,0.00020821,3]
[334686954,1723471840133,-501.49390567,0.00020821,3]
[334686955,1723471840143,-500.0,0.00020821,3]
[334686956,1723471840153,-505.1534437,0.00020821,3]
[334686957,1723471840162,-325.65215929,0.00020821,3]
[334686958,1723471840173,-500.0,0.00020821,3]
[334686959,1723471840184,-500.0,0.00020821,3]
[334686960,1723471840194,-500.0,0.00020821,3]
[334686961,1723471840222,-500.0,0.00020821,3]
[334686962,1723471840232,-500.0,0.00020821,3]
[334686963,1723471840242,-500.0,0.00020821,3]
[334686964,1723471840251,-505.48,0.00020821,3]
[334686965,1723471840261,-500.0,0.00020821,3]
[334686966,1723471840271,-500.0,0.00020821,3]
[334686967,1723471840280,-500.0,0.00020821,3]
[334686968,1723471840289,-500.0,0.00020821,3]
[334686969,1723471840298,-500.0,0.00020821,3]
[334686970,1723471840308,-500.0,0.00020821,3]
[334686971,1723471840317,-500.0,0.00020821,3]
[334686972,1723471840327,-538.62229691,0.00020821,3]
[334686973,1723471840336,-504.83163467,0.00020821,3]
[334686974,1723471840346,-500.0,0.00020821,3]
[334686975,1723471840355,-503.67,0.00020821,3]
[334686976,1723471840364,-500.0,0.00020821,3]
[334686977,1723471840374,-503.80031897,0.00020821,3]
[334686978,1723471840383,-640.23,0.00020821,3]
[334686979,1723471840393,-500.0,0.00020821,3]
[334686980,1723471840402,-605.66,0.00020821,3]
[334686981,1723471840411,-500.0,0.00020821,3]
[334686982,1723471840420,-503.24843815,0.00020821,3]
[334686983,1723471840434,-506.13000869,0.00020821,3]
[334686984,1723471840443,-500.0,0.00020821,3]
[334686985,1723471840452,-500.0,0.00020821,3]
[334686986,1723471840461,-500.0,0.00020821,3]
[334686987,1723471840471,-500.0,0.00020821,3]
[334686988,1723471840480,-500.0,0.00020821,3]
[334686989,1723471840490,-508.3166345,0.00020821,3]
[334686990,1723471840499,-503.04790354,0.00020821,3]
[334686991,1723471840508,-500.0,0.00020821,3]
[334686992,1723471840517,-500.0,0.00020821,3]
[334686993,1723471840526,-500.0,0.00020821,3]
[334686994,1723471840535,-500.0,0.00020821,3]
[334686995,1723471840544,-987.39,0.00020821,3]
[334686996,1723471840554,-500.0,0.00020821,3]
[334686997,1723471840563,-500.73988775,0.00020821,3]
[334686998,1723471840573,-508.75605454,0.00020821,3]
[334686999,1723471840582,-500.0,0.00020821,3]
[334687000,1723471840596,-500.0,0.00020821,3]
[334687001,1723471840606,-500.0,0.00020821,3]
[334687002,1723471840615,-500.0,0.00020821,3]
[334687003,1723471840625,-500.0,0.00020821,3]
[334687004,1723471840636,-500.0,0.00020821,3]
[334687005,1723471840645,-500.0,0.00020821,3]
[334687006,1723471840654,-535.90743817,0.00020821,3]
[334687007,1723471840665,-500.0,0.00020821,3]
[334687008,1723471840675,-520.15882396,0.00020821,3]
[334687009,1723471840684,-500.0,0.00020821,3]
[334687010,1723471840693,-502.78650335,0.00020821,3]
[334687011,1723471840706,-500.0,0.00020821,3]
[334687012,1723471840731,-500.0,0.00020821,3]
[334687013,1723471840740,-821.68,0.00020821,3]
[334687014,1723471840750,-500.0,0.00020821,3]
[334687015,1723471840759,-500.0,0.00020821,3]
[334687016,1723471840768,-511.2077985,0.00020821,3]
[334687017,1723471840777,-500.0,0.00020821,3]
[334687018,1723471840786,-500.0,0.00020821,3]
[334687019,1723471840795,-502.64746291,0.00020821,3]
[334687020,1723471840805,-500.0,0.00020821,3]
[334687021,1723471840814,-500.0,0.00020821,3]
[334687022,1723471840824,-500.0,0.00020821,3]
[334687023,1723471840834,-500.0,0.00020821,3]
[334687024,1723471840843,-500.0,0.00020821,3]
[334687025,1723471840852,-500.0,0.00020821,3]
[334687026,1723471840862,-500.0,0.00020821,3]
[334687027,1723471840871,-512.19781729,0.00020821,3]
[334687028,1723471840880,-200.0,0.00020821,3]
[334687029,1723471840890,-500.0,0.00020821,3]
[334687030,1723471840899,-500.0,0.00020821,3]
[334687031,1723471840909,-500.0,0.00020821,3]
[334687032,1723471840918,-500.0,0.00020821,3]
[334687033,1723471840928,-500.0,0.00020821,3]
[334687034,1723471840937,-500.0,0.00020821,3]
[334687035,1723471840947,-500.0,0.00020821,3]
[334687036,1723471840957,-500.0,0.00020821,3]
[334687037,1723471840967,-500.0,0.00020821,3]
[334687038,1723471840976,-500.0,0.00020821,3]
[334687039,1723471840985,-232.80984885,0.00020821,3]
[334687040,1723471840995,-500.0,0.00020821,3]
[334687041,1723471841004,-500.0,0.00020821,3]
[334687042,1723471841013,-817.11,0.00020821,3]
[334687043,1723471841023,-500.0,0.00020821,3]
[334687044,1723471841032,-152.30821725,0.00020821,3]
[334687045,1723471841041,-500.0,0.00020821,3]
[334687046,1723471841050,-550.24824527,0.00020821,3]
[334687047,1723471841059,-500.0,0.00020821,3]
[334687048,1723471841069,-877.57,0.00020821,3]
[334687049,1723471841079,-505.35130249,0.00020821,3]
[334687050,1723471841088,-500.0,0.00020821,3]
[334687051,1723471841097,-500.0,0.00020821,3]
[334687052,1723471841106,-500.0,0.00020821,3]
[334687053,1723471841115,-500.0,0.00020821,3]
[334687054,1723471841124,-500.0,0.00020821,3]
[334687055,1723471841133,-500.0,0.00020821,3]
[334687056,1723471841144,-1099.39,0.00020821,3]
[334687057,1723471841153,-500.0,0.00020821,3]
[334687058,1723471841163,-505.7020919,0.00020821,3]
[334687059,1723471841172,-500.0,0.00020821,3]
[334687060,1723471841181,-990.24,0.00020821,3]
[334687061,1723471841190,-500.0,0.00020821,3]
[334687062,1723471841200,-500.0,0.00020821,3]
[334687063,1723471841219,-808.92,0.00020821,3]
[334687064,1723471841234,-500.0,0.00020821,3]
[334687065,1723471841244,-991.27,0.00020821,3]
[334687066,1723471841254,-500.0,0.00020821,3]
[334687067,1723471841263,-511.03850065,0.00020821,3]
[334687068,1723471841273,-500.0,0.00020821,3]
[334687069,1723471841281,-500.0,0.00020821,3]
[334687070,1723471841290,-500.0,0.00020821,3]
[334687071,1723471841299,-500.0,0.00020821,3]
[334687072,1723471841308,-875.87,0.00020821,3]
[334687073,1723471841318,-500.0,0.00020821,3]
[334687074,1723471841327,-505.51406527,0.00020821,3]
[334687075,1723471841336,-500.0,0.00020821,3]
[334687076,1723471841346,-500.0,0.00020821,3]
[334687077,1723471841355,-500.0,0.00020821,3]
[334687078,1723471841364,-872.42,0.00020821,3]
[334687079,1723471841374,-500.0,0.00020821,3]
[334687080,1723471841383,-500.0,0.00020821,3]
[334687081,1723471841392,-500.0,0.00020821,3]
[334687082,1723471841401,-625.8659027,0.00020821,3]
[334687083,1723471841411,-548.13124583,0.00020821,3]
[334687084,1723471841421,-500.0,0.00020821,3]
[334687085,1723471841430,-500.0,0.00020821,3]
[334687086,1723471841439,-2805.56,0.00020821,3]
[334687087,1723471841449,-500.0,0.00020821,3]
[334687088,1723471841458,-500.0,0.00020821,3]
[334687089,1723471841467,-500.0,0.00020821,3]
[334687090,1723471841476,-500.0,0.00020821,3]
[334687091,1723471841486,-500.0,0.00020821,3]
[334687092,1723471841496,-500.0,0.00020821,3]
[334687093,1723471841506,-500.0,0.00020821,3]
[334687094,1723471841515,-500.0,0.00020821,3]
[334687095,1723471841525,-500.0,0.00020821,3]
[334687096,1723471841534,-500.0,0.00020821,3]
[334687097,1723471841544,-625.0,0.00020821,3]
[334687098,1723471841553,-500.0,0.00020821,3]
[334687099,1723471841563,-500.0,0.00020821,3]
[334687100,1723471841572,-500.0,0.00020821,3]
[334687101,1723471841582,-714.67,0.00020821,3]
[334687102,1723471841591,-247.54467433,0.00020821,3]
[334687103,1723471841604,-505.10991823,0.00020821,3]
[334687104,1723471841614,-500.0,0.00020821,3]
[334687105,1723471841623,-650.54,0.00020821,3]
[334687106,1723471841632,-666.92,0.00020821,3]
[334687107,1723471841642,-503.35240023,0.00020821,3]
[334687108,1723471841652,-1287.25,0.00020821,3]
[334687109,1723471841661,-500.0,0.00020821,3]
[334687110,1723471841671,-500.0,0.00020821,3]
[334687111,1723471841681,-472.46281568,0.00020821,3]
[334687112,1723471841690,-582.01,0.00020821,3]
[334687113,1723471841700,-500.0,0.00020821,3]
[334687114,1723471841709,-521.14,0.00020821,3]
[334687115,1723471841731,-556.32,0.00020821,3]
[334687116,1723471841741,-500.0,0.00020821,3]
[334687117,1723471841750,-500.0,0.00020821,3]
[334687118,1723471841759,-1492.04,0.00020821,3]
[334687119,1723471841769,-500.0,0.00020821,3]
[334687120,1723471841778,-500.0,0.00020821,3]
[334687121,1723471841788,-500.0,0.00020821,3]
[334687122,1723471841798,-518.07078944,0.00020821,3]
[334687123,1723471841807,-555.20493065,0.00020821,3]
[334687124,1723471841817,-779.91,0.00020821,3]
[334687125,1723471841826,-527.34,0.00020821,3]
[334687126,1723471841835,-500.0,0.00020821,3]
[334687127,1723471841844,-1942.52,0.00020821,3]
[334687128,1723471841853,-500.0,0.00020821,3]
[334687129,1723471841863,-1305.42,0.00020821,3]
[334687130,1723471841872,-559.11,0.00020821,3]
[334687131,1723471841881,-1161.84,0.00020821,3]
[334687132,1723471841890,-338.92508657,0.00020821,3]
[334687140,1723471842811,-926.35397024,0.00018679,2]
[334687141,1723471842822,-201.67599291,0.00018899,2]
[334687142,1723471842832,-31.03433044,0.00020821,3]
[334687144,1723471842843,-280.08058299,0.00020821,3]
[334687146,1723471842853,-523.20088517,0.00020821,3]
[334687148,1723471842863,-500.0,0.00020821,3]
[334687150,1723471842872,-500.0,0.00020821,3]
[334687152,1723471842882,-725.66,0.00020821,3]
[334687154,1723471842892,-532.98,0.00020821,3]
[334687157,1723471842901,-500.0,0.00020821,3]
[334687158,1723471842910,-500.0,0.00020821,3]
[334687160,1723471842920,-500.0,0.00020821,3]
[334687162,1723471842930,-500.0,0.00020821,3]
[334687163,1723471842939,-197.07821233,0.00020821,3]
[334687165,1723471842952,-302.92178767,0.00020821,3]
[334687167,1723471842962,-500.0,0.00020821,3]
[334687169,1723471842972,-1044.55,0.00020821,3]
[334687171,1723471842982,-500.0,0.00020821,3]
[334687172,1723471842992,-500.0,0.00020821,3]
[334687173,1723471843003,-1480.07,0.00020821,3]
[334687174,1723471843012,-760.7,0.00020821,3]
[334687175,1723471843021,-349.06693073,0.00020821,3]
[334687176,1723471843040,-130.41046164,0.00020821,3]
[334687177,1723471843050,-500.0,0.00020821,3]
[334687178,1723471843060,-500.0,0.00020821,3]
[334687179,1723471843070,-500.0,0.00020821,3]
[334687180,1723471843079,-500.0,0.00020821,3]
[334687181,1723471843089,-512.53553775,0.00020821,3]
[334687182,1723471843099,-500.0,0.00020821,3]
[334687183,1723471843109,-500.0,0.00020821,3]
[334687184,1723471843120,-500.0,0.00020821,3]
[334687185,1723471843130,-500.0,0.00020821,3]
[334687186,1723471843140,-500.0,0.00020821,3]
[334687187,1723471843151,-500.0,0.00020821,3]
[334687188,1723471843160,-500.0,0.00020821,3]
[334687189,1723471843170,-500.0,0.00020821,3]
[334687190,1723471843180,-503.70916886,0.00020821,3]
[334687191,1723471843189,-500.0,0.00020821,3]
[334687192,1723471843199,-1900.55,0.00020821,3]
[334687193,1723471843209,-500.0,0.00020821,3]
[334687194,1723471843219,-965.7,0.00020821,3]
[334687195,1723471843228,-2147.67,0.00020821,3]
[334687196,1723471843247,-501.7475152,0.00020821,3]
[334687197,1723471843257,-1223.43,0.00020821,3]
[334687198,1723471843267,-1508.26,0.00020821,3]
[334687199,1723471843280,-501.48143873,0.00020821,3]
[334687200,1723471843289,-726.46,0.00020821,3]
[334687201,1723471843298,-500.0,0.00020821,3]
[334687202,1723471843307,-500.0,0.00020821,3]
[334687203,1723471843316,-5869.33,0.00020821,3]
[334687204,1723471843326,-502.07607423,0.00020821,3]
[334687205,1723471843336,-1645.92,0.00020821,3]
[334687206,1723471843345,-5994.45,0.00020821,3]
[334687207,1723471843355,-500.0,0.00020821,3]
[334687208,1723471843365,-500.0,0.00020821,2]
[334687209,1723471843374,-1415.57,0.00020821,3]
[334687210,1723471843384,-1961.64,0.00020821,3]
[334687211,1723471843394,-500.0,0.00020821,3]
[334687212,1723471843403,-500.0,0.00020821,3]
[334687213,1723471843413,-918.2,0.00020821,3]
[334687214,1723471843422,-500.0,0.00020821,3]
[334687215,1723471843433,-6625.26,0.00020821,3]
[334687216,1723471843442,-1358.73,0.00020821,3]
[334687217,1723471843453,-511.68645328,0.00020821,3]
[334687218,1723471843462,-500.0,0.00020821,3]
[334687219,1723471843472,-500.0,0.00020821,3]
[334687220,1723471843481,-500.0,0.00020821,3]
[334687221,1723471843502,-1770.21,0.00020821,3]
[334687222,1723471843514,-500.0,0.00020821,3]
[334687223,1723471843524,-500.0,0.00020821,3]
[334687224,1723471843533,-500.0,0.00020821,3]
[334687225,1723471843542,-500.0,0.00020821,3]
[334687226,1723471843551,-2367.58,0.00020821,3]
[334687227,1723471843561,-500.0,0.00020821,3]
[334687228,1723471843570,-500.0,0.00020821,3]
[334687229,1723471843580,-506.08398547,0.00020821,3]
[334687230,1723471843590,-7615.51,0.00020821,3]
[334687231,1723471843601,-1009.47,0.00020821,3]
[334687232,1723471843611,-500.0,0.00020821,3]
[334687233,1723471843620,-2112.42,0.00020821,3]
[334687234,1723471843630,-500.0,0.00020821,3]
[334687235,1723471843640,-505.79921518,0.00020821,3]
[334687236,1723471843649,-698.22,0.00020821,3]
[334687237,1723471843659,-1250.81,0.00020821,3]
[334687238,1723471843668,-500.0,0.00020821,3]
[334687239,1723471843680,-1595.39,0.00020821,3]
[334687240,1723471843689,-500.0,0.00020821,3]
[334687241,1723471843699,-500.0,0.00020821,3]
[334687242,1723471843709,-485.3864207,0.00020821,3]
[334687243,1723471843718,-500.0,0.00020821,3]
[334687244,1723471843728,-500.0,0.00020821,3]
[334687245,1723471843747,-567.99,0.00020821,3]
[334687246,1723471843757,-705.57,0.00020821,3]
[334687247,1723471843767,-1226.21,0.00020821,3]
[334687248,1723471843777,-500.0,0.00020821,3]
[334687249,1723471843787,-928.71,0.00020821,3]
[334687250,1723471843797,-500.0,0.00020821,3]
[334687251,1723471843806,-721.17,0.00020821,3]
[334687252,1723471843816,-623.26,0.00020821,3]
[334687253,1723471843825,-1449.87,0.00020821,3]
[334687254,1723471843834,-2214.35,0.00020821,3]
[334687255,1723471843844,-500.0,0.00020821,3]
[334687256,1723471843853,-538.31,0.00020821,3]
[334687257,1723471843863,-500.0,0.00020821,3]
[334687258,1723471843873,-1214.89,0.00020821,3]
[334687259,1723471843882,-500.0,0.00020821,3]
[334687260,1723471843892,-500.0,0.00020821,3]
[334687261,1723471843901,-500.0,0.00020821,3]
[334687262,1723471843910,-500.0,0.00020821,3]
[334687263,1723471843920,-864.99,0.00020821,3]
[334687264,1723471843930,-500.0,0.00020821,3]
[334687265,1723471843940,-510.2702451,0.00020821,3]
[334687266,1723471843950,-506.5942804,0.00020821,3]
[334687267,1723471843960,-2204.39,0.00020821,3]
[334687268,1723471843970,-585.31294183,0.00020821,3]
[334687269,1723471843980,-542.9,0.00020821,3]
[334687270,1723471844002,-542.9,0.00020821,3]
[334687271,1723471844012,-542.9,0.00020821,3]
[334687272,1723471844022,-542.9,0.00020821,3]
[334687273,1723471844031,-542.9,0.00020821,3]
[334687274,1723471844041,-542.9,0.00020821,3]
[334687275,1723471844051,-542.9,0.00020821,3]
[334687276,1723471844060,-542.9,0.00020821,3]
[334687277,1723471844070,-542.9,0.00020821,3]
[334687278,1723471844079,-542.9,0.00020821,3]